Workbook

Sheet паспорт
A1: ПАТ "УКРТРАНСГАЗ" | G1: ПАСПОРТ ФІЗИКО-ХІМІЧНИХ ПОКАЗНИКІВ ПРИРОДНОГО ГАЗУ № 109
A2: Філія "УМГ "КИЇВТРАНСГАЗ" | G2: переданого Диканським ЛВУМГ та прийнятого ПАТ "Полтавагаз"
A3: Решетилівський п/м Диканське ЛВУМГ | G3: Маршрут № 109
A4: Вимірювальна хіміко-аналітична лабораторія
A5: Свідоцтво № 123/15 чинно до 31.12.2018 р. | K5: по газопроводу "ЄЛЕЦЬ-КРЕМЕНЧУК-КРИВИЙ РІГ" | V5: за період з | X5: 2017-05-01 | Z5: по | AA5: 2017-05-31
A7: Число місяця | B7: Компонентний склад, % мол. | N7: Фізико-хімічні показники газу обчислені на основі компонентного складу, 101,325 кПа | X7: Температура точки роси за вологою (Р = 3.92 МПа), ºС | Y7: Температура точки роси за вуглеводнями, ºС | Z7: Вміст сірководню, г/м3 | AA7: Вміст меркаптанової сірки, г/м3 | AB7: Вміст механічних домішок, г/м3
N8: Густина абсолютна, кг/м3,при 20 ºС, | O8: Температура вимірювання/згоряння при 20/25°С
B9: метан, С1 | C9: етан, С2 | D9: пропан, С3 | E9: ізо-бутан, і-С4 | F9: н-бутан, н-С4 | G9: нео-пентан, нео-С5 | H9: ізо-пентан, і-С5 | I9: н-пентан, н-С5 | J9: гексани та вищі, С6+ | K9: кисень, О2 | L9: азот, N2 | M9: діоксид вуглецю, CО2 | O9: Теплота згоряння нижча | R9: Теплота згоряння вища | U9: Число Воббе вище
O10: ккал/м3 | P10: МДж/м3 | Q10: кВт⋅год/м3 | R10: ккал/м3 | S10: МДж/м3 | T10: кВт⋅год/м3 | U10: ккал/м3 | V10: МДж/м3 | W10: кВт⋅год/м3
A11: 1 | O11: 8245 | P11: 34.52 | Q11: 9.588888889 | R11: 9140 | S11: 38.27 | T11: 10.63055556 | AC11: =SUM(B11:M11)+$K$42+$N$42 -> 0
A12: 2 | O12: 8245 | P12: 34.52 | Q12: 9.588888889 | R12: 9140 | S12: 38.27 | T12: 10.63055556 | AC12: 0
A13: 3 | B13: 95.3144 | C13: 2.6665 | D13: 0.8542 | E13: 0.1348 | F13: 0.1288 | G13: 0.0015 | H13: 0.024 | I13: 0.0162 | J13: 0.0101 | K13: 0.0053 | L13: 0.6417 | M13: 0.2026 | N13: 0.7054 | O13: 8252 | P13: 34.55 | Q13: 9.597222222 | R13: 9148 | S13: 38.3 | T13: 10.63888889 | U13: 11954 | V13: 50.05 | W13: 13.90277778 | X13: -20.3 | Y13: -17.6 | AC13: 100.0001 | AD13: =IF(AC13=100,"ОК"," ") -> 
A14: 4 | O14: 8252 | P14: 34.55 | Q14: 9.597222222 | R14: 9148 | S14: 38.3 | T14: 10.63888889 | AC14: 0 | AD14: =IF(AC14=100,"ОК"," ") -> 
A15: 5 | O15: 8252 | P15: 34.55 | Q15: 9.597222222 | R15: 9148 | S15: 38.3 | T15: 10.63888889 | AC15: 0
A16: 6 | O16: 8252 | P16: 34.55 | Q16: 9.597222222 | R16: 9148 | S16: 38.3 | T16: 10.63888889 | AC16: 0
A17: 7 | O17: 8252 | P17: 34.55 | Q17: 9.597222222 | R17: 9148 | S17: 38.3 | T17: 10.63888889 | AC17: 0
A18: 8 | O18: 8252 | P18: 34.55 | Q18: 9.597222222 | R18: 9148 | S18: 38.3 | T18: 10.63888889 | AC18: 0
A19: 9 | O19: 8252 | P19: 34.55 | Q19: 9.597222222 | R19: 9148 | S19: 38.3 | T19: 10.63888889 | AC19: 0
A20: 10 | B20: 95.3576 | C20: 2.6473 | D20: 0.8478 | E20: 0.1334 | F20: 0.1273 | G20: 0.0011 | H20: 0.0242 | I20: 0.0166 | J20: 0.0103 | K20: 0.0051 | L20: 0.627 | M20: 0.2022 | N20: 0.7051 | O20: 8250 | P20: 34.54 | Q20: 9.594444444 | R20: 9148 | S20: 38.3 | T20: 10.63888889 | U20: 11954 | V20: 50.05 | W20: 13.90277778 | X20: -21.6 | Y20: -17.4 | AC20: 99.9999
A21: 11 | O21: 8250 | P21: 34.54 | Q21: 9.594444444 | R21: 9148 | S21: 38.3 | T21: 10.63888889 | AC21: 0
A22: 12 | O22: 8250 | P22: 34.54 | Q22: 9.594444444 | R22: 9148 | S22: 38.3 | T22: 10.63888889 | AC22: 0
A23: 13 | O23: 8250 | P23: 34.54 | Q23: 9.594444444 | R23: 9148 | S23: 38.3 | T23: 10.63888889 | AC23: 0
A24: 14 | O24: 8250 | P24: 34.54 | Q24: 9.594444444 | R24: 9148 | S24: 38.3 | T24: 10.63888889 | AC24: 0
A25: 15 | B25: 95.1884 | C25: 2.7624 | D25: 0.8793 | E25: 0.1382 | F25: 0.1327 | G25: 0.0012 | H25: 0.0255 | I25: 0.0173 | J25: 0.0118 | K25: 0.0047 | L25: 0.621 | M25: 0.2173 | N25: 0.7065 | O25: 8264 | P25: 34.6 | Q25: 9.611111111 | R25: 9162 | S25: 38.36 | T25: 10.65555556 | U25: 11961 | V25: 50.08 | W25: 13.91111111 | X25: -22.5 | Y25: -19.9 | AC25: 99.9998
A26: 16 | O26: 8264 | P26: 34.6 | Q26: 9.611111111 | R26: 9162 | S26: 38.36 | T26: 10.65555556 | AC26: 0
A27: 17 | O27: 8264 | P27: 34.6 | Q27: 9.611111111 | R27: 9162 | S27: 38.36 | T27: 10.65555556 | AC27: 0
A28: 18 | O28: 8264 | P28: 34.6 | Q28: 9.611111111 | R28: 9162 | S28: 38.36 | T28: 10.65555556 | AC28: 0
A29: 19 | O29: 8264 | P29: 34.6 | Q29: 9.611111111 | R29: 9162 | S29: 38.36 | T29: 10.65555556 | AC29: 0
A30: 20 | O30: 8264 | P30: 34.6 | Q30: 9.611111111 | R30: 9162 | S30: 38.36 | T30: 10.65555556 | AC30: 0 | AD30: =IF(AC30=100,"ОК"," ") -> 
A31: 21 | O31: 8264 | P31: 34.6 | Q31: 9.611111111 | R31: 9162 | S31: 38.36 | T31: 10.65555556 | AC31: 0
A32: 22 | B32: 95.2241 | C32: 2.7499 | D32: 0.871 | E32: 0.1356 | F32: 0.1277 | G32: 0.0014 | H32: 0.024 | I32: 0.0162 | J32: 0.0094 | K32: 0.0046 | L32: 0.6232 | M32: 0.2129 | N32: 0.7061 | O32: 8259 | P32: 34.58 | Q32: 9.605555556 | R32: 9157 | S32: 38.34 | T32: 10.65 | U32: 11959 | V32: 50.07 | W32: 13.90833333 | X32: -22.6 | Y32: -19.2 | AC32: 100 | AD32: ОК
A33: 23 | O33: 8259 | P33: 34.58 | Q33: 9.605555556 | R33: 9157 | S33: 38.34 | T33: 10.65 | AC33: 0 | AD33: =IF(AC33=100,"ОК"," ") -> 
A34: 24 | O34: 8259 | P34: 34.58 | Q34: 9.605555556 | R34: 9157 | S34: 38.34 | T34: 10.65 | AC34: 0
A35: 25 | O35: 8259 | P35: 34.58 | Q35: 9.605555556 | R35: 9157 | S35: 38.34 | T35: 10.65 | AC35: 0
A36: 26 | O36: 8259 | P36: 34.58 | Q36: 9.605555556 | R36: 9157 | S36: 38.34 | T36: 10.65 | AC36: 0
A37: 27 | O37: 8259 | P37: 34.58 | Q37: 9.605555556 | R37: 9157 | S37: 38.34 | T37: 10.65 | AC37: 0
A38: 28 | O38: 8259 | P38: 34.58 | Q38: 9.605555556 | R38: 9157 | S38: 38.34 | T38: 10.65 | AC38: 0
A39: 29 | B39: 95.436 | C39: 2.5566 | D39: 0.8593 | E39: 0.1351 | F39: 0.1319 | G39: 0.0014 | H39: 0.0245 | I39: 0.0167 | J39: 0.0096 | K39: 0.0051 | L39: 0.6377 | M39: 0.1861 | N39: 0.7046 | O39: 8247 | P39: 34.53 | Q39: 9.591666667 | R39: 9143 | S39: 38.28 | T39: 10.63333333 | U39: 11954 | V39: 50.05 | W39: 13.90277778 | X39: -21.9 | Y39: -17 | Z39: <0,006 | AA39: <0,02 | AB39: відсут. | AC39: 100 | AD39: ОК
A40: 30 | O40: 8247 | P40: 34.53 | Q40: 9.591666667 | R40: 9143 | S40: 38.28 | T40: 10.63333333 | AC40: 0
A41: 31 | O41: 8247 | P41: 34.53 | Q41: 9.591666667 | R41: 9143 | S41: 38.28 | T41: 10.63333333 | AC41: 0
A42: Рівень одоризації відповідає чинним нормативним документам | O42: =SUMPRODUCT(O11:O41,' розрахунок'!I7:I37)/' розрахунок'!I38 -> 8255.825803 | P42: =SUMPRODUCT(P11:P41,' розрахунок'!I7:I37)/' розрахунок'!I38 -> 34.56581883 | Q42: =SUMPRODUCT(Q11:Q41,' розрахунок'!I7:I37)/' розрахунок'!I38 -> 9.601616341 | R42: =SUMPRODUCT(R11:R41,' розрахунок'!I7:I37)/' розрахунок'!I38 -> 9153.229767 | S42: =SUMPRODUCT(S11:S41,' розрахунок'!I7:I37)/' розрахунок'!I38 -> 38.32303717 | T42: =SUMPRODUCT(T11:T41,' розрахунок'!I7:I37)/' розрахунок'!I38 -> 10.6452881
H43: Середньозважене значення теплоти згоряння:
B46: Заступник начальника управління Диканського ЛВУМГ | O46: Герасименко І.М. | V46: 01.06.17р.
C47: Підрозділу підприємства, якому підпорядкована лабораторія | O47: прізвище | R47: підпис | V47: дата
B48: Завідувач лабораторією | O48: Славінська А.В. | V48: =V46 -> 01.06.17р.
C49: Лабораторія, де здійснювалось вимірювання газу | O49: прізвище | R49: підпис | V49: дата
B50: Начальник служби ГВ та М | O50: Левадний С.А. | V50: =V46 -> 01.06.17р.
C51: Підрозділу, відповідального за облік газу за маршрутом | O51: прізвище | R51: підпис | V51: дата

Sheet розрахунок
A2: Додаток до Паспорту фізико-хімічних показників природного газу по маршруту № 109
A4: Число місяця | B4: Теплота згоряння вища, МДж/м3 | C4: Полтавська область | I4: Загальний обсяг газу, м3
C5: Обсяг газу переданого за добу, м3
C6: ГРС Решетилівка | D6: ГРС Остап'є | E6: ГРС Покровське (Жовтневе) | F6: ГРС Ставкове | G6: ГРС Дейкалівка | H6: ГРС Пірки (Комсомольське)
A7: 1 | B7: =паспорт!S11 -> 38.27 | C7: 7378.75 | D7: 2436.29 | E7: 1822.17 | F7: 449.03 | G7: 2159.48 | H7: 439.1 | I7: =SUM(C7:H7) -> 14684.82
A8: 2 | B8: =паспорт!S12 -> 38.27 | C8: 7145.08 | D8: 2438.7 | E8: 2052.45 | F8: 427.89 | G8: 2327.64 | H8: 427.96 | I8: 14819.72
A9: 3 | B9: =паспорт!S13 -> 38.3 | C9: 7435.94 | D9: 2119.25 | E9: 3164.71 | F9: 364.31 | G9: 2418.74 | H9: 426.6 | I9: 15929.55
A10: 4 | B10: =паспорт!S14 -> 38.3 | C10: 7495.58 | D10: 2282.2 | E10: 3330.59 | F10: 409.89 | G10: 2373.65 | H10: 457.71 | I10: 16349.62
A11: 5 | B11: =паспорт!S15 -> 38.3 | C11: 7720.85 | D11: 2332.62 | E11: 3473.48 | F11: 411.82 | G11: 2459.92 | H11: 466.49 | I11: 16865.18
A12: 6 | B12: =паспорт!S16 -> 38.3 | C12: 7196.41 | D12: 2284.87 | E12: 3469.77 | F12: 454.81 | G12: 2480.33 | H12: 446.77 | I12: 16332.96
A13: 7 | B13: =паспорт!S17 -> 38.3 | C13: 6660.17 | D13: 2139.3 | E13: 3438.35 | F13: 425.92 | G13: 2338.18 | H13: 442.59 | I13: 15444.51
A14: 8 | B14: =паспорт!S18 -> 38.3 | C14: 7282.51 | D14: 2061.39 | E14: 3567.67 | F14: 422.97 | G14: 2382.41 | H14: 422.65 | I14: 16139.6
A15: 9 | B15: =паспорт!S19 -> 38.3 | C15: 7901.59 | D15: 2287.1 | E15: 3802.14 | F15: 491.75 | G15: 2670.21 | H15: 478.01 | I15: 17630.8
A16: 10 | B16: =паспорт!S20 -> 38.3 | C16: 11107.5 | D16: 3147.38 | E16: 5473.15 | F16: 1053.45 | G16: 4952.57 | H16: 829.07 | I16: 26563.12
A17: 11 | B17: =паспорт!S21 -> 38.3 | C17: 12383.39 | D17: 3615.77 | E17: 6111.25 | F17: 1013.27 | G17: 4777.16 | H17: 917.73 | I17: 28818.57
A18: 12 | B18: =паспорт!S22 -> 38.3 | C18: 16033.06 | D18: 4938.28 | E18: 4382.63 | F18: 1508.47 | G18: 6147.6 | H18: 983.57 | I18: 33993.61
A19: 13 | B19: =паспорт!S23 -> 38.3 | C19: 16832.98 | D19: 5406.31 | E19: 4062.58 | F19: 1555.71 | G19: 6214.44 | H19: 1156.85 | I19: 35228.87
A20: 14 | B20: =паспорт!S24 -> 38.3 | C20: 16078.36 | D20: 4957.27 | E20: 4600.37 | F20: 1261.84 | G20: 5198.99 | H20: 953.72 | I20: 33050.55
A21: 15 | B21: =паспорт!S25 -> 38.36 | C21: 10248.5 | D21: 3109.27 | E21: 3617.97 | F21: 717.69 | G21: 3253.09 | H21: 687.69 | I21: 21634.21
A22: 16 | B22: =паспорт!S26 -> 38.36 | C22: 7830.33 | D22: 5584.97 | E22: 1684.15 | F22: 537.13 | G22: 2746.46 | H22: 484.36 | I22: 18867.4
A23: 17 | B23: =паспорт!S27 -> 38.36 | C23: 8749.91 | D23: 8061.43 | E23: 1938.94 | F23: 592.54 | G23: 2781.55 | H23: 619.08 | I23: 22743.45
A24: 18 | B24: =паспорт!S28 -> 38.36 | C24: 10538.27 | D24: 15779.59 | E24: 2410.19 | F24: 849.06 | G24: 4177.84 | H24: 753.95 | I24: 34508.9
A25: 19 | B25: =паспорт!S29 -> 38.36 | C25: 12334.43 | D25: 14853.19 | E25: 2891.16 | F25: 1108.08 | G25: 4311.6 | H25: 913.44 | I25: 36411.9
A26: 20 | B26: =паспорт!S30 -> 38.36 | C26: 13642.14 | D26: 15496.12 | E26: 3328.04 | F26: 950.06 | G26: 4440.69 | H26: 771.36 | I26: 38628.41
A27: 21 | B27: =паспорт!S31 -> 38.36 | C27: 11273.41 | D27: 13649.75 | E27: 2701.97 | F27: 775.16 | G27: 3463.84 | H27: 571.46 | I27: 32435.59
A28: 22 | B28: =паспорт!S32 -> 38.34 | C28: 9254.19 | D28: 12630.12 | E28: 1952.5 | F28: 539.54 | G28: 3152.85 | H28: 458.38 | I28: 27987.58
A29: 23 | B29: =паспорт!S33 -> 38.34 | C29: 11389.9 | D29: 11776.09 | E29: 1903.74 | F29: 400.13 | G29: 2253.11 | H29: 471.68 | I29: 28194.65
A30: 24 | B30: =паспорт!S34 -> 38.34 | C30: 6867.8 | D30: 12050.08 | E30: 1235.3 | F30: 454.52 | G30: 2203.92 | H30: 349.29 | I30: 23160.91
A31: 25 | B31: =паспорт!S35 -> 38.34 | C31: 6953.67 | D31: 12419.38 | E31: 1159.06 | F31: 348.06 | G31: 2158.81 | H31: 366.84 | I31: 23405.82
A32: 26 | B32: =паспорт!S36 -> 38.34 | C32: 6209.83 | D32: 11507.52 | E32: 1854.14 | F32: 343.13 | G32: 2028.19 | H32: 340.32 | I32: 22283.13
A33: 27 | B33: =паспорт!S37 -> 38.34 | C33: 7763.38 | D33: 12263.93 | E33: 1563.53 | F33: 383.89 | G33: 2144 | H33: 375.87 | I33: 24494.6
A34: 28 | B34: =паспорт!S38 -> 38.34 | C34: 6502.71 | D34: 12862.49 | E34: 1741.83 | F34: 385.91 | G34: 2105.97 | H34: 378.39 | I34: 23977.3
A35: 29 | B35: =паспорт!S39 -> 38.28 | C35: 6299.85 | D35: 11162.16 | E35: 1199.73 | F35: 372.98 | G35: 1723.47 | H35: 317.38 | I35: 21075.57
A36: 30 | B36: =паспорт!S40 -> 38.28 | C36: 6358.42 | D36: 8525.26 | E36: 1513.61 | F36: 320.58 | G36: 1793.78 | H36: 290.43 | I36: 18802.08
A37: 31 | B37: =паспорт!S41 -> 38.28 | C37: 6691.65 | D37: 11699.68 | E37: 1278.71 | F37: 335.48 | G37: 2335.71 | H37: 286.43 | I37: 22627.66
A38: Загальний обсяг газу, м3 | C38: =SUM(C7:C37) -> 287560.56 | D38: 235877.76 | E38: 86725.88 | F38: 19665.07 | G38: 95976.2 | H38: =SUM(H7:H37) -> 17285.17 | I38: 743090.64
A39: Енергія, МДж | C39: =SUMPRODUCT(B7:B37,C7:C37) -> 11019421.41 | D39: =SUMPRODUCT(B7:B37,D7:D37) -> 9041356.66 | E39: =SUMPRODUCT(B7:B37,E7:E37) -> 3322975.874 | F39: =SUMPRODUCT(B7:B37,F7:F37) -> 753571.283 | G39: =SUMPRODUCT(B7:B37,G7:G37) -> 3677789.165 | H39: =SUMPRODUCT(B7:B37,H7:H37) -> 662375.8256 | I39: =SUMPRODUCT(B7:B37,I7:I37) -> 28477490.22
A40: Теплота згоряння (середньозважене значення за місяць), МДж/м³ | C40: =C39/C38 -> 38.32035038 | D40: =D39/D38 -> 38.3306873 | E40: =E39/E38 -> 38.31585074 | F40: =F39/F38 -> 38.32029497 | G40: 38.31980392 | H40: 38.32046926 | I40: 38.32303717
A41: Теплота згоряння (середньозважене значення за місяць), ккал/м³ | C41: =C40*238.8459 -> 9152.658574 | D41: =D40*238.8459 -> 9155.127506 | E41: 9151.583855 | F41: 9152.64534 | G41: 9152.528056 | H41: 9152.686968 | I41: 9153.300305
A42: Теплота згоряння (середньозважене значення за місяць), кВт*год./м³ | C42: =C40/3.6 -> 10.64454177 | D42: =D40/3.6 -> 10.64741314 | E42: 10.64329187 | F42: 10.64452638 | G42: 10.64438998 | H42: 10.64457479 | I42: 10.6452881

Sheet додаток
A2: Додаток до Паспорту фізико-хімічних показників природного газу №109
A4: Область | B4: ГРС, прямий споживач | C4: Cередньозважене значення вищої теплоти згоряння
C5: МДж/м³ | D5: ккал/м³ | E5: кВт*год./м³
A6: Полтавська область | B6: ГРС Решетилівка | C6: =' розрахунок'!C40 -> 38.32035038 | D6: =' розрахунок'!C41 -> 9152.658574 | E6: =' розрахунок'!C42 -> 10.64454177
B7: ГРС Остап'є | C7: =' розрахунок'!D40 -> 38.3306873 | D7: =' розрахунок'!D41 -> 9155.127506 | E7: =' розрахунок'!D42 -> 10.64741314
B8: ГРС Покровське (Жовтневе) | C8: =' розрахунок'!E40 -> 38.31585074 | D8: =' розрахунок'!E41 -> 9151.583855 | E8: =' розрахунок'!E42 -> 10.64329187
B9: ГРС Ставкове | C9: =' розрахунок'!F40 -> 38.32029497 | D9: =' розрахунок'!F41 -> 9152.64534 | E9: =' розрахунок'!F42 -> 10.64452638
B10: ГРС Дейкалівка | C10: =' розрахунок'!G40 -> 38.31980392 | D10: =' розрахунок'!G41 -> 9152.528056 | E10: =' розрахунок'!G42 -> 10.64438998
B11: ГРС Пірки (Комсомольське) | C11: =' розрахунок'!H40 -> 38.32046926 | D11: =' розрахунок'!H41 -> 9152.686968 | E11: =' розрахунок'!H42 -> 10.64457479
A12: Середньозважене значення вищої теплоти згоряння по маршруту № 109 | C12: =' розрахунок'!I40 -> 38.32303717 | D12: =' розрахунок'!I41 -> 9153.300305 | E12: =' розрахунок'!I42 -> 10.6452881
A16: Заступник начальника управління Диканського ЛВУМГ | D16: Герасименко І.М. | F16: =паспорт!V46 -> 01.06.17р.
A17: Підрозділу підприємства, якому підпорядкована лабораторія | D17: прізвище | E17: підпис | F17: дата
A18: Завідувач лабораторією | D18: Славінська А.В. | F18: =F16 -> 01.06.17р.
A19: Лабораторія, де здійснювалось вимірювання газу | D19: прізвище | E19: підпис | F19: дата
A20: Начальник служби ГВ та М | D20: Левадний С.А. | F20: =F16 -> 01.06.17р.
A21: Підрозділу, відповідального за облік газу за маршрутом | D21: прізвище | E21: підпис | F21: дата

Sheet variablesList (hidden)
A1: 3 | B1: x:\gaysin | C1: 10, 11, 24, 25, 127, 128, 132, 180, 207, 215 | D1: x:\
B2: x:\Illinci
B3: x:\Talne
